[Event "*** Titled Tuesday 3|2 Blitz (Late)"]
[Site "Chess.com"]
[Date "2017.01.03"]
[Round "4"]
[White "Fh2411"]
[Black "Kacparov"]
[Result "0-1"]
[WhiteElo "2382"]
[BlackElo "2594"]
[TimeControl "180+2"]
[EndTime "17:46:53 PST"]
[Termination "Kacparov won by resignation"]

1. d4 {[%clk 0:03:01.9]} 1... d6 {[%clk 0:03:00.6]} 2. Nf3 {[%clk 0:03:02.3]}
2... g6 {[%clk 0:03:01]} 3. g3 {[%clk 0:03:02.9]} 3... Bg7 {[%clk 0:03:02.1]} 4.
Bg2 {[%clk 0:03:04.5]} 4... e5 {[%clk 0:03:01.6]} 5. dxe5 {[%clk 0:03:03.5]}
5... dxe5 {[%clk 0:03:03.5]} 6. Qxd8+ {[%clk 0:03:04.1]} 6... Kxd8 {[%clk
0:03:05.4]} 7. O-O {[%clk 0:03:04.3]} 7... f6 {[%clk 0:03:06.2]} 8. Rd1+ {[%clk
0:03:01.7]} 8... Nd7 {[%clk 0:03:06.9]} 9. Nc3 {[%clk 0:02:58.2]} 9... Ne7
{[%clk 0:03:06.7]} 10. a4 {[%clk 0:02:46.3]} 10... c6 {[%clk 0:03:04.9]} 11. a5
{[%clk 0:02:46.8]} 11... Kc7 {[%clk 0:03:05.2]} 12. b3 {[%clk 0:02:45.2]} 12...
Bf8 {[%clk 0:02:54.4]} 13. Ba3 {[%clk 0:02:42.7]} 13... Nf5 {[%clk 0:02:54.5]}
14. e3 {[%clk 0:02:38.7]} 14... Bxa3 {[%clk 0:02:54.7]} 15. Rxa3 {[%clk
0:02:40.6]} 15... Nc5 {[%clk 0:02:54.8]} 16. b4 {[%clk 0:02:35.5]} 16... Ne6
{[%clk 0:02:55.2]} 17. Ne4 {[%clk 0:02:34]} 17... Rf8 {[%clk 0:02:54.1]} 18.
Rad3 {[%clk 0:02:32]} 18... Ne7 {[%clk 0:02:35.2]} 19. Nc3 {[%clk 0:02:17.1]}
19... Rd8 {[%clk 0:02:33.3]} 20. Rxd8 {[%clk 0:02:13]} 20... Nxd8 {[%clk
0:02:35.2]} 21. Ne4 {[%clk 0:02:10.9]} 21... Ng8 {[%clk 0:02:29.2]} 22. c4
{[%clk 0:02:02.2]} 22... Nf7 {[%clk 0:02:26]} 23. c5 {[%clk 0:01:56.7]} 23...
Be6 {[%clk 0:02:15.2]} 24. Nd6 {[%clk 0:01:55.8]} 24... Rd8 {[%clk 0:02:06.5]}
25. a6 {[%clk 0:01:43.7]} 25... bxa6 {[%clk 0:02:05.3]} 26. Ra1 {[%clk
0:01:41.7]} 26... Nxd6 {[%clk 0:02:05.7]} 27. cxd6+ {[%clk 0:01:43.6]} 27...
Rxd6 {[%clk 0:02:05.9]} 28. Bf1 {[%clk 0:01:42.2]} 28... Ne7 {[%clk 0:02:05.1]}
29. Bxa6 {[%clk 0:01:37.8]} 29... Bg4 {[%clk 0:01:57.8]} 30. Kg2 {[%clk
0:01:34]} 30... Bxf3+ {[%clk 0:01:56.2]} 31. Kxf3 {[%clk 0:01:35.9]} 31... Kb6
{[%clk 0:01:54.6]} 32. Bc4 {[%clk 0:01:34.7]} 32... Rd2 {[%clk 0:01:44.8]} 33.
Ra6+ {[%clk 0:01:23.9]} 33... Kb7 {[%clk 0:01:44.9]} 34. b5 {[%clk 0:01:24]}
34... Rc2 {[%clk 0:01:41.4]} 35. bxc6+ {[%clk 0:01:21.7]} 35... Nxc6 {[%clk
0:01:40.4]} 36. Bb5 {[%clk 0:01:18.5]} 36... Rc5 {[%clk 0:01:37.7]} 37. Bf1
{[%clk 0:01:18.9]} 37... f5 {[%clk 0:01:33.9]} 38. h4 {[%clk 0:01:05.6]} 38...
e4+ {[%clk 0:01:34.9]} 39. Kg2 {[%clk 0:01:01.7]} 39... Rc2 {[%clk 0:01:33.2]}
40. Bb5 {[%clk 0:00:43.3]} 40... Ne5 {[%clk 0:01:33.7]} 41. Re6 {[%clk
0:00:41.2]} 41... Ng4 {[%clk 0:01:34.5]} 42. Ba6+ {[%clk 0:00:39.3]} 42... Kc7
{[%clk 0:01:34.1]} 43. h5 {[%clk 0:00:27.6]} 43... Rxf2+ {[%clk 0:01:33.8]} 44.
Kg1 {[%clk 0:00:28.5]} 44... gxh5 {[%clk 0:01:28.7]} 45. Re7+ {[%clk 0:00:25]}
45... Kb6 {[%clk 0:01:26.3]} 46. Bc8 {[%clk 0:00:26.4]} 46... Rf3 {[%clk
0:01:25.6]} 47. Rxh7 {[%clk 0:00:18.9]} 47... Rxg3+ {[%clk 0:01:26.3]} 48. Kf1
{[%clk 0:00:20]} 48... Rf3+ {[%clk 0:01:27]} 49. Kg1 {[%clk 0:00:20.8]} 49... a5
{[%clk 0:01:22.7]} 50. Rxh5 {[%clk 0:00:20.8]} 50... Nxe3 {[%clk 0:01:23.9]} 51.
Bd7 {[%clk 0:00:18.5]} 51... Kc5 {[%clk 0:01:22.1]} 52. Rh6 {[%clk 0:00:16.4]}
52... Nc4 {[%clk 0:01:20.1]} 53. Rc6+ {[%clk 0:00:15.7]} 53... Kd4 {[%clk
0:01:20.7]} 54. Be6 {[%clk 0:00:16.3]} 54... Ne5 {[%clk 0:01:09.3]} 55. Ra6
{[%clk 0:00:16.9]} 55... e3 {[%clk 0:00:58.4]} 56. Rxa5 {[%clk 0:00:14.3]} 56...
e2 {[%clk 0:00:58.8]} 57. Ra1 {[%clk 0:00:12]} 57... Nd3 {[%clk 0:00:59.8]} 58.
Kg2 {[%clk 0:00:11.2]} 58... e1=Q {[%clk 0:00:55.5]} 0-1

[Event "*** Titled Tuesday 3|2 Blitz (Late)"]
[Site "Chess.com"]
[Date "2017.01.03"]
[Round "4"]
[White "HouseOfDurin"]
[Black "chesstatour"]
[Result "1-0"]
[WhiteElo "1845"]
[BlackElo "1786"]
[TimeControl "180+2"]
[EndTime "17:46:56 PST"]
[Termination "HouseOfDurin won by resignation"]

1. d4 {[%clk 0:03:02]} 1... f5 {[%clk 0:02:59.6]} 2. c4 {[%clk 0:03:00.2]} 2...
Nf6 {[%clk 0:03:00.3]} 3. d5 {[%clk 0:03:00.4]} 3... g6 {[%clk 0:03:00.8]} 4.
Nc3 {[%clk 0:03:01.7]} 4... Bg7 {[%clk 0:03:02.4]} 5. g3 {[%clk 0:02:54.4]} 5...
O-O {[%clk 0:03:02.2]} 6. Bg2 {[%clk 0:02:55.9]} 6... e5 {[%clk 0:02:51.4]} 7.
dxe6 {[%clk 0:02:49.5]} 7... dxe6 {[%clk 0:02:53.3]} 8. Qxd8 {[%clk 0:02:45.8]}
8... Rxd8 {[%clk 0:02:55.2]} 9. Nb5 {[%clk 0:02:36.4]} 9... Na6 {[%clk
0:02:53.1]} 10. a3 {[%clk 0:02:00.2]} 10... c6 {[%clk 0:02:40.2]} 11. Nc3 {[%clk
0:01:59.2]} 11... e5 {[%clk 0:02:41.1]} 12. e4 {[%clk 0:01:55.4]} 12... Be6
{[%clk 0:02:39.6]} 13. b3 {[%clk 0:01:16.4]} 13... Nc5 {[%clk 0:02:11.2]} 14.
Rb1 {[%clk 0:01:17]} 14... fxe4 {[%clk 0:01:23.6]} 15. h3 {[%clk 0:01:08.2]}
15... Rd7 {[%clk 0:00:48.6]} 16. Be3 {[%clk 0:01:08.7]} 16... Nxb3 {[%clk
0:00:14.2]} 17. Rxb3 {[%clk 0:01:07.8]} 17... Bxc4 {[%clk 0:00:15.8]} 18. Rb1
{[%clk 0:01:01.8]} 18... Bd5 {[%clk 0:00:15.7]} 19. Nge2 {[%clk 0:01:01.4]}
19... Rf8 {[%clk 0:00:13.8]} 20. O-O {[%clk 0:01:01.5]} 20... Rfd8 {[%clk
0:00:13.4]} 21. g4 {[%clk 0:00:58.7]} 21... h6 {[%clk 0:00:09.5]} 22. Rfe1
{[%clk 0:00:58.2]} 22... Kf7 {[%clk 0:00:08.3]} 23. Ng3 {[%clk 0:00:59.6]} 23...
b5 {[%clk 0:00:05.4]} 24. Ncxe4 {[%clk 0:00:59]} 24... Nxe4 {[%clk 0:00:06.6]}
25. Nxe4 {[%clk 0:01:00.4]} 25... Bf8 {[%clk 0:00:03.3]} 26. Nc5 {[%clk
0:00:50.1]} 26... Bxc5 {[%clk 0:00:03.4]} 27. Bxc5 {[%clk 0:00:52]} 27... Kf6
{[%clk 0:00:03.9]} 28. Bxd5 {[%clk 0:00:47.8]} 28... Rxd5 {[%clk 0:00:03.9]} 29.
Bxa7 {[%clk 0:00:48.4]} 29... Ra8 {[%clk 0:00:05]} 30. Be3 {[%clk 0:00:40.3]}
30... Rxa3 {[%clk 0:00:05.6]} 31. Rbc1 {[%clk 0:00:36.3]} 31... Ra6 {[%clk
0:00:06.5]} 32. Bxh6 {[%clk 0:00:35]} 32... g5 {[%clk 0:00:07.7]} 33. Bf8 {[%clk
0:00:32]} 33... Rd3 {[%clk 0:00:07.5]} 34. Re3 {[%clk 0:00:26.3]} 34... Rxe3
{[%clk 0:00:06.8]} 35. fxe3 {[%clk 0:00:28.2]} 35... Ke6 {[%clk 0:00:07.8]} 36.
Kf2 {[%clk 0:00:25.5]} 36... Kd5 {[%clk 0:00:08.1]} 37. Kf3 {[%clk 0:00:21.3]}
37... e4+ {[%clk 0:00:08.8]} 38. Kg3 {[%clk 0:00:20.9]} 38... Ra4 {[%clk
0:00:06.5]} 39. Bh6 {[%clk 0:00:20.2]} 39... c5 {[%clk 0:00:05.7]} 40. Bxg5
{[%clk 0:00:21.2]} 40... c4 {[%clk 0:00:07.2]} 41. h4 {[%clk 0:00:22.1]} 41...
b4 {[%clk 0:00:07.6]} 42. h5 {[%clk 0:00:21.6]} 42... c3 {[%clk 0:00:08.3]} 43.
Bf6 {[%clk 0:00:20.7]} 43... Kc4 {[%clk 0:00:09]} 44. h6 {[%clk 0:00:21.4]}
44... Ra7 {[%clk 0:00:08.7]} 45. g5 {[%clk 0:00:22.5]} 45... Kd3 {[%clk
0:00:08]} 46. Kf4 {[%clk 0:00:23.7]} 46... c2 {[%clk 0:00:09.4]} 47. g6 {[%clk
0:00:23.2]} 47... Kd2 {[%clk 0:00:10.6]} 48. Rg1 {[%clk 0:00:23.3]} 48... c1=Q
{[%clk 0:00:09.6]} 49. Rxc1 {[%clk 0:00:23.9]} 49... Kxc1 {[%clk 0:00:11.5]} 50.
h7 {[%clk 0:00:23.5]} 50... Ra8 {[%clk 0:00:09.5]} 51. h8=Q {[%clk 0:00:24.5]}
51... Rxh8 {[%clk 0:00:08]} 52. Bxh8 {[%clk 0:00:26.4]} 52... b3 {[%clk
0:00:09.4]} 53. Be5 {[%clk 0:00:26.7]} 53... Kc2 {[%clk 0:00:09.3]} 54. Kxe4
{[%clk 0:00:27.9]} 1-0

[Event "*** Titled Tuesday 3|2 Blitz (Late)"]
[Site "Chess.com"]
[Date "2017.01.03"]
[Round "4"]
[White "MattyDPerrine"]
[Black "macko06"]
[Result "0-1"]
[WhiteElo "2249"]
[BlackElo "2295"]
[TimeControl "180+2"]
[EndTime "17:46:58 PST"]
[Termination "macko06 won by resignation"]

1. d4 {[%clk 0:03:02]} 1... Nf6 {[%clk 0:02:55.9]} 2. Nf3 {[%clk 0:02:58.7]}
2... g6 {[%clk 0:02:55.2]} 3. g3 {[%clk 0:02:59.8]} 3... Bg7 {[%clk 0:02:55.2]}
4. Bg2 {[%clk 0:03:01.3]} 4... O-O {[%clk 0:02:54.9]} 5. O-O {[%clk 0:03:02.1]}
5... d5 {[%clk 0:02:53.8]} 6. c4 {[%clk 0:03:02.8]} 6... dxc4 {[%clk 0:02:54.9]}
7. Na3 {[%clk 0:03:04.1]} 7... c3 {[%clk 0:02:46.2]} 8. bxc3 {[%clk 0:03:03]}
8... Nc6 {[%clk 0:02:47.3]} 9. Re1 {[%clk 0:02:37.5]} 9... Bf5 {[%clk
0:02:38.5]} 10. Nh4 {[%clk 0:02:34.4]} 10... Bg4 {[%clk 0:02:33.4]} 11. h3
{[%clk 0:02:34]} 11... Bc8 {[%clk 0:02:31.1]} 12. e4 {[%clk 0:02:20.9]} 12... e5
{[%clk 0:02:29.5]} 13. Nc2 {[%clk 0:02:18.9]} 13... Re8 {[%clk 0:02:27.2]} 14.
f4 {[%clk 0:02:05.8]} 14... exd4 {[%clk 0:02:23]} 15. cxd4 {[%clk 0:01:54.4]}
15... Nh5 {[%clk 0:02:12.9]} 16. Kh2 {[%clk 0:01:07.1]} 16... Nxd4 {[%clk
0:02:10.4]} 17. e5 {[%clk 0:00:55.5]} 17... Nc6 {[%clk 0:02:08.8]} 18. Qxd8
{[%clk 0:00:43.9]} 18... Rxd8 {[%clk 0:02:08]} 19. g4 {[%clk 0:00:43.8]} 19...
Nf6 {[%clk 0:02:02.3]} 20. exf6 {[%clk 0:00:29]} 20... Bxf6 {[%clk 0:02:02]} 21.
Nf3 {[%clk 0:00:26.5]} 21... Bxa1 {[%clk 0:01:57.8]} 22. Nxa1 {[%clk 0:00:28.4]}
22... Be6 {[%clk 0:01:55.6]} 23. a3 {[%clk 0:00:27.1]} 23... Bd5 {[%clk
0:01:54.5]} 24. Nc2 {[%clk 0:00:24.8]} 24... Re8 {[%clk 0:01:53.1]} 25. Ne5
{[%clk 0:00:21.4]} 25... Bxg2 {[%clk 0:01:48.7]} 26. Kxg2 {[%clk 0:00:23.3]}
26... Nxe5 {[%clk 0:01:48.7]} 27. fxe5 {[%clk 0:00:25.2]} 27... Rad8 {[%clk
0:01:39.2]} 28. Bg5 {[%clk 0:00:26.3]} 28... Rd3 {[%clk 0:01:36.6]} 29. Re2
{[%clk 0:00:22.8]} 29... a5 {[%clk 0:01:30.1]} 30. Bf6 {[%clk 0:00:23.3]} 30...
b5 {[%clk 0:01:28.4]} 31. h4 {[%clk 0:00:17.2]} 31... c5 {[%clk 0:01:26.7]} 32.
Kf2 {[%clk 0:00:11.5]} 32... b4 {[%clk 0:01:25.4]} 33. axb4 {[%clk 0:00:09.7]}
33... cxb4 {[%clk 0:01:24]} 34. Re3 {[%clk 0:00:06.2]} 34... Rxe3 {[%clk
0:01:12.2]} 35. Kxe3 {[%clk 0:00:08.1]} 35... Rc8 {[%clk 0:01:08.5]} 36. Kd2
{[%clk 0:00:09]} 36... Rc4 {[%clk 0:01:07]} 37. Ne3 {[%clk 0:00:09.7]} 37... Re4
{[%clk 0:01:05.3]} 38. Kd3 {[%clk 0:00:08.3]} 38... Rf4 {[%clk 0:01:04.3]} 39.
Bd8 {[%clk 0:00:06.1]} 39... a4 {[%clk 0:01:01.9]} 40. Kc2 {[%clk 0:00:05.2]}
40... Re4 {[%clk 0:01:00.1]} 41. Bb6 {[%clk 0:00:06.4]} 41... Rxe5 {[%clk
0:00:59.8]} 42. Kd3 {[%clk 0:00:03.4]} 42... b3 {[%clk 0:00:57]} 43. Bd4 {[%clk
0:00:04.4]} 43... Rb5 {[%clk 0:00:56.6]} 44. Nc4 {[%clk 0:00:05.6]} 44... h5
{[%clk 0:00:55.2]} 45. g5 {[%clk 0:00:06.4]} 45... Rf5 {[%clk 0:00:55.4]} 46.
Bb2 {[%clk 0:00:03.2]} 46... Rf4 {[%clk 0:00:56.2]} 47. Nb6 {[%clk 0:00:04.3]}
47... Rxh4 {[%clk 0:00:56.7]} 48. Kc3 {[%clk 0:00:04.1]} 48... Rg4 {[%clk
0:00:56.8]} 49. Kd3 {[%clk 0:00:04.1]} 49... Rxg5 {[%clk 0:00:56.9]} 50. Nxa4
{[%clk 0:00:05.5]} 50... Rg3+ {[%clk 0:00:58.4]} 51. Ke2 {[%clk 0:00:05.2]}
51... Rg2+ {[%clk 0:00:59.3]} 52. Kf3 {[%clk 0:00:06.2]} 52... Rxb2 {[%clk
0:00:59.7]} 53. Nxb2 {[%clk 0:00:07.1]} 53... Kg7 {[%clk 0:01:01.6]} 54. Ke3
{[%clk 0:00:05.1]} 54... h4 {[%clk 0:01:02.4]} 55. Kd2 {[%clk 0:00:05.2]} 55...
h3 {[%clk 0:01:03.1]} 56. Nd3 {[%clk 0:00:06.7]} 56... g5 {[%clk 0:01:03.7]} 57.
Nf2 {[%clk 0:00:06.1]} 57... h2 {[%clk 0:01:03.3]} 58. Kc3 {[%clk 0:00:05.3]}
58... Kf6 {[%clk 0:01:04.8]} 59. Kxb3 {[%clk 0:00:06.3]} 59... Kf5 {[%clk
0:01:06.3]} 60. Kc2 {[%clk 0:00:07.6]} 60... Kf4 {[%clk 0:01:07.9]} 61. Kd2
{[%clk 0:00:08.5]} 61... Kf3 {[%clk 0:01:09.5]} 62. Ke1 {[%clk 0:00:10.4]} 62...
Kg2 {[%clk 0:01:10.8]} 63. Ke2 {[%clk 0:00:07.8]} 63... h1=Q {[%clk 0:01:11.7]}
0-1

[Event "*** Titled Tuesday 3|2 Blitz (Late)"]
[Site "Chess.com"]
[Date "2017.01.03"]
[Round "4"]
[White "capatl"]
[Black "Andrejkin"]
[Result "1-0"]
[WhiteElo "2282"]
[BlackElo "2193"]
[TimeControl "180+2"]
[EndTime "17:47:01 PST"]
[Termination "capatl won by resignation"]

1. c4 {[%clk 0:02:56.4]} 1... Nf6 {[%clk 0:02:59.4]} 2. Nc3 {[%clk 0:02:55]}
2... c6 {[%clk 0:02:54.9]} 3. Nf3 {[%clk 0:02:53.5]} 3... d5 {[%clk 0:02:52.1]}
4. e3 {[%clk 0:02:54.7]} 4... e6 {[%clk 0:02:51.9]} 5. d4 {[%clk 0:02:55.2]}
5... Nbd7 {[%clk 0:02:51.6]} 6. b3 {[%clk 0:02:51.4]} 6... Be7 {[%clk
0:02:50.1]} 7. Bb2 {[%clk 0:02:51.7]} 7... O-O {[%clk 0:02:51]} 8. Qc2 {[%clk
0:02:52.6]} 8... b6 {[%clk 0:02:52]} 9. Bd3 {[%clk 0:02:51.5]} 9... Bb7 {[%clk
0:02:51.9]} 10. O-O {[%clk 0:02:52.1]} 10... h6 {[%clk 0:02:47.4]} 11. Rfe1
{[%clk 0:02:52.1]} 11... c5 {[%clk 0:02:45.9]} 12. Rad1 {[%clk 0:02:43.6]} 12...
Rc8 {[%clk 0:02:45.7]} 13. Qb1 {[%clk 0:02:43.7]} 13... Qc7 {[%clk 0:02:44.5]}
14. h3 {[%clk 0:02:39.5]} 14... Rfe8 {[%clk 0:02:39.7]} 15. e4 {[%clk
0:02:25.9]} 15... dxe4 {[%clk 0:02:39.8]} 16. Nxe4 {[%clk 0:02:26.8]} 16... Nxe4
{[%clk 0:02:39.3]} 17. Bxe4 {[%clk 0:02:28.7]} 17... Bxe4 {[%clk 0:02:36.6]} 18.
Qxe4 {[%clk 0:02:28.5]} 18... Nf6 {[%clk 0:02:37.6]} 19. Qe2 {[%clk 0:02:29.5]}
19... cxd4 {[%clk 0:02:35.9]} 20. Nxd4 {[%clk 0:02:29.6]} 20... Rcd8 {[%clk
0:02:29.5]} 21. Rd3 {[%clk 0:02:22.4]} 21... a6 {[%clk 0:02:25.7]} 22. Rg3
{[%clk 0:02:15.3]} 22... Bd6 {[%clk 0:02:06.3]} 23. Rd3 {[%clk 0:02:01.2]} 23...
Bc5 {[%clk 0:01:48.6]} 24. Red1 {[%clk 0:02:00.4]} 24... Rd7 {[%clk 0:01:22.2]}
25. Nf3 {[%clk 0:01:49.3]} 25... Rxd3 {[%clk 0:01:17.2]} 26. Rxd3 {[%clk
0:01:51.2]} 26... Qf4 {[%clk 0:01:10.9]} 27. Be5 {[%clk 0:01:48.5]} 27... Qf5
{[%clk 0:01:00.6]} 28. Bd4 {[%clk 0:01:30.6]} 28... Rd8 {[%clk 0:00:46.5]} 29.
Rd2 {[%clk 0:01:22.3]} 29... Ne4 {[%clk 0:00:42.3]} 30. Rd1 {[%clk 0:01:17.5]}
30... Bxd4 {[%clk 0:00:33.9]} 31. Rxd4 {[%clk 0:01:16.9]} 31... Rxd4 {[%clk
0:00:27.6]} 32. Nxd4 {[%clk 0:01:18.8]} 32... Nc3 {[%clk 0:00:21.4]} 33. Qb2
{[%clk 0:01:08.3]} 33... Qb1+ {[%clk 0:00:21.6]} 34. Qxb1 {[%clk 0:01:09.1]}
34... Nxb1 {[%clk 0:00:23.5]} 35. Ne2 {[%clk 0:01:08.1]} 35... e5 {[%clk
0:00:21.1]} 36. f3 {[%clk 0:01:08.4]} 36... f6 {[%clk 0:00:20.3]} 37. Kf2 {[%clk
0:01:10.3]} 37... Kf7 {[%clk 0:00:21.5]} 38. Ke3 {[%clk 0:01:12.2]} 38... Ke6
{[%clk 0:00:22.8]} 39. Kd3 {[%clk 0:01:13.4]} 39... Na3 {[%clk 0:00:23.7]} 40.
Kc3 {[%clk 0:01:12.5]} 40... b5 {[%clk 0:00:22.8]} 41. Kb4 {[%clk 0:01:10.7]}
41... Nc2+ {[%clk 0:00:23.6]} 42. Kc3 {[%clk 0:01:11.6]} 42... Ne1 {[%clk
0:00:24.6]} 43. cxb5 {[%clk 0:01:10.9]} 43... axb5 {[%clk 0:00:25.4]} 44. Kb4
{[%clk 0:01:05.8]} 44... Nxg2 {[%clk 0:00:26.3]} 45. Kxb5 {[%clk 0:01:06.9]}
45... Ne1 {[%clk 0:00:27.3]} 46. Ng1 {[%clk 0:01:06.3]} 46... Nc2 {[%clk
0:00:24.2]} 47. a4 {[%clk 0:01:06.3]} 47... Nd4+ {[%clk 0:00:25.5]} 48. Kc4
{[%clk 0:01:07.1]} 48... Kd6 {[%clk 0:00:26.4]} 49. b4 {[%clk 0:01:07.7]} 49...
f5 {[%clk 0:00:26.1]} 50. b5 {[%clk 0:01:08.4]} 50... g5 {[%clk 0:00:26.5]} 51.
a5 {[%clk 0:01:09.3]} 51... Ne2 {[%clk 0:00:23.4]} 52. Nxe2 {[%clk 0:01:09.2]}
52... h5 {[%clk 0:00:18]} 53. b6 {[%clk 0:01:05.2]} 53... Kc6 {[%clk 0:00:18.4]}
54. Kd3 {[%clk 0:01:03.5]} 54... g4 {[%clk 0:00:17.2]} 55. fxg4 {[%clk
0:01:04.2]} 55... fxg4 {[%clk 0:00:18]} 56. hxg4 {[%clk 0:01:04.7]} 56... hxg4
{[%clk 0:00:18.7]} 57. Ng3 {[%clk 0:01:05.6]} 57... Kb7 {[%clk 0:00:19.3]} 58.
Ke4 {[%clk 0:01:06.7]} 58... Ka6 {[%clk 0:00:20.5]} 59. Kxe5 {[%clk 0:01:07.9]}
59... Kb7 {[%clk 0:00:22]} 60. Kf4 {[%clk 0:01:08.9]} 60... Ka6 {[%clk
0:00:23.7]} 61. Kxg4 {[%clk 0:01:10.7]} 61... Kxa5 {[%clk 0:00:25.4]} 62. b7
{[%clk 0:01:10.4]} 62... Ka4 {[%clk 0:00:24.6]} 63. b8=Q {[%clk 0:01:12.3]} 1-0

[Event "*** Titled Tuesday 3|2 Blitz (Late)"]
[Site "Chess.com"]
[Date "2017.01.03"]
[Round "4"]
[White "calemcc"]
[Black "attack2mateU"]
[Result "1-0"]
[WhiteElo "2222"]
[BlackElo "2319"]
[TimeControl "180+2"]
[EndTime "17:47:10 PST"]
[Termination "calemcc won by resignation"]

1. d4 {[%clk 0:03:02]} 1... Nf6 {[%clk 0:02:58]} 2. c4 {[%clk 0:02:49.9]} 2...
e6 {[%clk 0:02:58]} 3. Nf3 {[%clk 0:02:50.3]} 3... b6 {[%clk 0:02:58.8]} 4. g3
{[%clk 0:02:51.4]} 4... Ba6 {[%clk 0:02:59.6]} 5. b3 {[%clk 0:02:52.4]} 5...
Bb4+ {[%clk 0:03:00.4]} 6. Bd2 {[%clk 0:02:52.9]} 6... Be7 {[%clk 0:03:02]} 7.
Bg2 {[%clk 0:02:54.5]} 7... c6 {[%clk 0:03:02.8]} 8. O-O {[%clk 0:02:55.8]} 8...
d5 {[%clk 0:03:02.6]} 9. Ne5 {[%clk 0:02:57.2]} 9... Nfd7 {[%clk 0:03:03.4]} 10.
Nxd7 {[%clk 0:02:58.2]} 10... Nxd7 {[%clk 0:03:05.1]} 11. Bc3 {[%clk 0:02:59.5]}
11... O-O {[%clk 0:03:05.7]} 12. Nd2 {[%clk 0:03:00.2]} 12... Rb8 {[%clk
0:03:06.5]} 13. Qc2 {[%clk 0:03:00.7]} 13... b5 {[%clk 0:03:07.3]} 14. e4 {[%clk
0:03:00.3]} 14... bxc4 {[%clk 0:03:03.1]} 15. bxc4 {[%clk 0:03:00.5]} 15... dxc4
{[%clk 0:03:02.8]} 16. Rab1 {[%clk 0:02:59.3]} 16... Qc7 {[%clk 0:02:32.9]} 17.
e5 {[%clk 0:02:53.1]} 17... c5 {[%clk 0:01:38.4]} 18. f4 {[%clk 0:02:46]} 18...
cxd4 {[%clk 0:01:37.5]} 19. Bxd4 {[%clk 0:02:45.8]} 19... c3 {[%clk 0:01:34.1]}
20. Rfd1 {[%clk 0:02:32.7]} 20... Bd3 {[%clk 0:01:09.4]} 21. Qxd3 {[%clk
0:02:12.9]} 21... c2 {[%clk 0:01:10.8]} 22. Ne4 {[%clk 0:01:59.2]} 22... Rxb1
{[%clk 0:01:03.1]} 23. Rxb1 {[%clk 0:02:01.1]} 23... cxb1=Q+ {[%clk 0:00:55.2]}
24. Qxb1 {[%clk 0:02:03]} 24... Qc4 {[%clk 0:00:52]} 25. Bxa7 {[%clk 0:01:55.7]}
25... Nc5 {[%clk 0:00:50.5]} 26. Nd6 {[%clk 0:01:50.2]} 26... Bxd6 {[%clk
0:00:34.4]} 27. exd6 {[%clk 0:01:52.1]} 27... Rd8 {[%clk 0:00:33.2]} 28. Bb8
{[%clk 0:01:28.5]} 28... Qd4+ {[%clk 0:00:32.2]} 29. Kh1 {[%clk 0:01:28]} 29...
Nd3 {[%clk 0:00:33]} 30. h3 {[%clk 0:01:25.1]} 30... h5 {[%clk 0:00:32]} 31. Bc7
{[%clk 0:01:25.5]} 31... Rd7 {[%clk 0:00:19.6]} 32. Qb8+ {[%clk 0:01:24.3]}
32... Kh7 {[%clk 0:00:20.5]} 33. Qb5 {[%clk 0:01:25.9]} 33... Nc5 {[%clk
0:00:15.3]} 34. Bb6 {[%clk 0:01:15.5]} 34... Qa1+ {[%clk 0:00:11.3]} 35. Kh2
{[%clk 0:01:16.6]} 35... Rxd6 {[%clk 0:00:11.7]} 36. Qxc5 {[%clk 0:01:16.4]}
36... Rd2 {[%clk 0:00:10]} 37. Qxh5+ {[%clk 0:01:11.5]} 37... Kg8 {[%clk
0:00:11.7]} 38. Qf3 {[%clk 0:01:13.1]} 38... Qxa2 {[%clk 0:00:12.3]} 39. Be3
{[%clk 0:01:11.4]} 39... Re2 {[%clk 0:00:12.8]} 40. g4 {[%clk 0:01:07.8]} 40...
g6 {[%clk 0:00:13.1]} 41. Bd4 {[%clk 0:01:04]} 41... Kh7 {[%clk 0:00:12.2]} 42.
Qb7 {[%clk 0:01:00.8]} 42... e5 {[%clk 0:00:07.4]} 43. Bxe5 {[%clk 0:01:00.4]}
43... Qe6 {[%clk 0:00:07.3]} 44. Qc6 {[%clk 0:00:54.2]} 44... Rxe5 {[%clk
0:00:07.7]} 45. fxe5 {[%clk 0:00:53.2]} 45... Qxe5+ {[%clk 0:00:09.6]} 46. Kg1
{[%clk 0:00:52.8]} 46... Qe3+ {[%clk 0:00:07.8]} 47. Kf1 {[%clk 0:00:52.8]}
47... Qd3+ {[%clk 0:00:09.2]} 48. Kf2 {[%clk 0:00:53.8]} 48... Qd4+ {[%clk
0:00:10.3]} 49. Kf3 {[%clk 0:00:54.1]} 49... Qd3+ {[%clk 0:00:10.4]} 50. Kf4
{[%clk 0:00:54.6]} 50... Qd2+ {[%clk 0:00:11.7]} 51. Ke5 {[%clk 0:00:54.7]}
51... Qe3+ {[%clk 0:00:09.6]} 52. Kd6 {[%clk 0:00:55.7]} 52... f5 {[%clk
0:00:08.3]} 53. gxf5 {[%clk 0:00:54.8]} 53... gxf5 {[%clk 0:00:10.2]} 54. Qd7+
{[%clk 0:00:53.6]} 54... Kg6 {[%clk 0:00:06.4]} 55. Qc6 {[%clk 0:00:52.1]} 55...
f4 {[%clk 0:00:06.4]} 56. Bf3 {[%clk 0:00:51.8]} 56... Kg5 {[%clk 0:00:06.2]}
57. Qd5+ {[%clk 0:00:52.5]} 57... Kh4 {[%clk 0:00:06.8]} 58. Qh5+ {[%clk
0:00:53.4]} 58... Kg3 {[%clk 0:00:08.2]} 59. Qg4+ {[%clk 0:00:54.7]} 59... Kf2
{[%clk 0:00:08.3]} 60. Qg2+ {[%clk 0:00:56.3]} 60... Ke1 {[%clk 0:00:09.7]} 61.
h4 {[%clk 0:00:55.1]} 61... Qd4+ {[%clk 0:00:08.3]} 62. Ke6 {[%clk 0:00:55.9]}
62... Qb6+ {[%clk 0:00:07.1]} 63. Kf5 {[%clk 0:00:57]} 63... Qe3 {[%clk
0:00:04.3]} 64. h5 {[%clk 0:00:53.3]} 1-0